fUST/lending_fUST_20250901
["ID","MTS","AMOUNT","RATE_DAILY","PERIOD"]
[382673828,1756705845357,-480.0,0.00014231,2]
[382673830,1756705845367,-151.0,0.00014231,2]
[382673832,1756705845377,-480.0,0.00014231,2]
[382673834,1756705845386,-151.0,0.00014231,2]
[382673836,1756705845396,-151.0,0.00014231,2]
[382673838,1756705845405,-284.481536,0.00014231,2]
[382673840,1756705845414,-481.15084301,0.00014231,2]
[382673842,1756705845424,-480.0,0.00014231,2]
[382673844,1756705845433,-482.32835045,0.00014231,2]
[382673846,1756705845442,-480.0,0.00014231,2]
[382673848,1756705845451,-406.80765003,0.00014231,2]
[382673850,1756705845461,-480.0,0.00014231,2]
[382673852,1756705845470,-462.71427781,0.00014231,2]
[382673854,1756705845479,-151.0,0.00014231,2]
[382673856,1756705845489,-480.0,0.00014231,2]
[382673858,1756705845498,-546.95,0.00014231,2]
[382673860,1756705845507,-480.95202241,0.00014231,2]
[382673862,1756705845516,-480.0,0.00014231,2]
[382673864,1756705845525,-980.42,0.00014231,2]
[382673866,1756705845534,-480.0,0.00014231,2]
[382673867,1756705845543,-480.0,0.00014231,2]
[382673870,1756705845553,-482.01937465,0.00014231,2]
[382673872,1756705845563,-871.82,0.00014231,2]
[382673874,1756705845573,-151.0,0.00014231,2]
[382673876,1756705845583,-512.89,0.00014231,2]
[382673877,1756705845592,-151.0,0.00014231,2]
[382673879,1756705845601,-151.0,0.00014231,2]
[382673881,1756705845611,-480.0,0.00014231,2]
[382673884,1756705845620,-480.0,0.00014231,2]
[382673885,1756705845630,-151.0,0.00014231,2]
[382673888,1756705845640,-480.0,0.00014231,2]
[382673890,1756705845650,-480.0,0.00014231,2]
[382673891,1756705845659,-151.0,0.00014231,2]
[382673893,1756705845668,-151.656878,0.00014231,2]
[382673895,1756705845678,-480.0,0.00014231,2]
[382673897,1756705845687,-480.0,0.00014231,2]
[382673899,1756705845697,-480.0,0.00014231,2]
[382673901,1756705845706,-151.0,0.00014231,2]
[382673903,1756705845715,-183.492138,0.00014231,2]
[382673905,1756705845725,-151.0,0.00014231,2]
[382673907,1756705845735,-151.0,0.00014231,2]
[382673909,1756705845744,-482.53308073,0.00014231,2]
[382673911,1756705845753,-278.677164,0.00014231,2]
[382673913,1756705845763,-278.677164,0.00014231,2]
[382673915,1756705845772,-278.677164,0.00014231,2]
[382673917,1756705845782,-278.677164,0.00014231,2]
[382673919,1756705845791,-151.0,0.00014231,2]
[382673921,1756705845801,-154.132715,0.00014231,2]
[382673923,1756705845811,-151.0,0.00014231,2]
[382673925,1756705845820,-480.86158101,0.00014231,2]
[382673927,1756705845829,-151.0,0.00014231,2]
[382673929,1756705845839,-151.0,0.00014231,2]
[382673931,1756705845848,-480.0,0.00014231,2]
[382673933,1756705845858,-151.0,0.00014231,2]
[382673935,1756705845867,-151.0,0.00014231,2]
[382673937,1756705845876,-481.38516802,0.00014231,2]
[382673939,1756705845886,-480.0,0.00014231,2]
[382673941,1756705845896,-536.17,0.00014231,2]
[382673943,1756705845905,-1295.49,0.00014231,2]
[382673945,1756705845914,-151.0,0.00014231,2]
[382673947,1756705845923,-481.64271792,0.00014231,2]
[382673949,1756705845933,-490.4360983,0.00014231,2]
[382673952,1756705845943,-480.0,0.00014231,2]
[382673954,1756705845952,-482.83658517,0.00014231,2]
[382673956,1756705845961,-480.0,0.00014231,2]
[382673958,1756705845970,-480.00000001,0.00014231,2]
[382673960,1756705845981,-160.604832,0.00014231,2]
[382673962,1756705845990,-160.604832,0.00014231,2]
[382673964,1756705846000,-160.604832,0.00014231,2]
[382673966,1756705846009,-160.604832,0.00014231,2]
[382673968,1756705846018,-156.210329,0.00014231,2]
[382673970,1756705846027,-151.0,0.00014231,2]
[382673986,1756705846176,-151.0,0.00014231,2]
[382673988,1756705846191,-761.22,0.00014231,2]
[382673990,1756705846201,-151.0,0.00014231,2]
[382673992,1756705846211,-151.0,0.00014231,2]
[382673994,1756705846221,-526.89653165,0.00014231,2]
[382673996,1756705846230,-480.0,0.00014231,2]
[382673998,1756705846240,-276.040837,0.00014231,2]
[382674000,1756705846250,-151.0,0.00014231,2]
[382674002,1756705846259,-480.0,0.00014231,2]
[382674004,1756705846269,-151.0,0.00014231,2]
[382674006,1756705846278,-203.211685,0.00014231,2]
[382674008,1756705846288,-203.211685,0.00014231,2]
[382674010,1756705846297,-203.211685,0.00014231,2]
[382674012,1756705846306,-480.0,0.00014231,2]
[382674014,1756705846316,-203.211685,0.00014231,2]
[382674016,1756705846325,-500.0,0.00014233,2]
[382674018,1756705846335,-500.0,0.00014234,2]
[382674020,1756705846344,-480.0,0.00014234,2]
[382674022,1756705846354,-481.56537606,0.00014234,2]
[382674024,1756705846364,-481.82742496,0.00014234,2]
[382674026,1756705846374,-480.0,0.00014234,2]
[382674029,1756705846383,-220.448831,0.00014234,2]
[382674030,1756705846392,-286.763492,0.00014234,2]
[382674032,1756705846402,-480.0,0.00014234,2]
[382674035,1756705846412,-480.0,0.00014234,2]
[382674037,1756705846421,-489.14134259,0.00014234,2]
[382674039,1756705846431,-151.0,0.00014234,2]
[382674041,1756705846441,-151.0,0.00014234,2]
[382674043,1756705846450,-657.94,0.00014234,2]
[382674045,1756705846460,-480.0,0.00014234,2]
[382674047,1756705846469,-480.0,0.00014234,2]
[382674049,1756705846479,-151.0,0.00014234,2]
[382674051,1756705846489,-151.464156,0.00014234,2]
[382674053,1756705846498,-151.0,0.00014234,2]
[382674055,1756705846508,-151.0,0.00014234,2]
[382674057,1756705846517,-151.0,0.00014234,2]
[382674059,1756705846526,-151.0,0.00014234,2]
[382674061,1756705846535,-550.62,0.00014234,2]
[382674063,1756705846545,-151.0,0.00014234,2]
[382674065,1756705846555,-151.0,0.00014234,2]
[382674067,1756705846564,-151.0,0.00014234,2]
[382674069,1756705846573,-480.0,0.00014235,2]
[382674071,1756705846583,-542.83,0.00014235,2]
[382674073,1756705846592,-151.0,0.00014235,2]
[382674075,1756705846602,-151.0,0.00014235,2]
[382674077,1756705846611,-155.579698,0.00014235,2]
[382674079,1756705846621,-500.0,0.00014237,2]
[382674081,1756705846631,-500.0,0.00014237,2]
[382674083,1756705846640,-500.0,0.00014237,2]
[382674085,1756705846650,-500.0,0.00014237,2]
[382674087,1756705846659,-151.0,0.00014237,2]
[382674089,1756705846669,-151.75506122,0.00014237,2]
[382674091,1756705846679,-6074.19857096,0.00014258,2]
[382674093,1756705846689,-500.0,0.00014273,2]
[382674095,1756705846698,-500.0,0.00014273,2]
[382674097,1756705846708,-500.0,0.00014273,2]
[382674099,1756705846717,-500.0,0.00014273,2]
[382674101,1756705846726,-500.0,0.00014273,2]
[382674103,1756705846735,-501.40795839,0.00014273,2]
[382674105,1756705846744,-159.919406,0.00014273,2]
[382674107,1756705846754,-151.0,0.00014273,2]
[382674109,1756705846763,-151.0,0.00014273,2]
[382674111,1756705846773,-151.0,0.00014273,2]
[382674113,1756705846783,-151.0,0.00014273,2]
[382674115,1756705846792,-152.352164,0.00014273,2]
[382674117,1756705846802,-151.0,0.00014273,2]
[382674119,1756705846811,-206.140437,0.00014273,2]
[382674121,1756705846821,-151.0,0.00014273,2]
[382674123,1756705846830,-278.677164,0.00014273,2]
[382674125,1756705846839,-278.677164,0.00014273,2]
[382674127,1756705846849,-278.677164,0.00014273,2]
[382674129,1756705846859,-278.677164,0.00014273,2]
[382674131,1756705846868,-151.0,0.00014273,2]
[382674133,1756705846877,-153.302851,0.00014273,2]
[382674135,1756705846887,-151.0,0.00014273,2]
[382674137,1756705846896,-151.0,0.00014273,2]
[382674139,1756705846906,-151.0,0.00014273,2]
[382674141,1756705846917,-244.533514,0.00014273,2]
[382674143,1756705846926,-153.44143,0.00014273,2]
[382674145,1756705846936,-160.604832,0.00014273,2]
[382674147,1756705846945,-160.604832,0.00014273,2]
[382674149,1756705846955,-160.604832,0.00014273,2]
[382674151,1756705846964,-160.604832,0.00014273,2]
[382674153,1756705846975,-151.0,0.00014298,2]
[382674155,1756705846985,-151.0,0.00014298,2]
[382674157,1756705846995,-151.0,0.00014298,2]
[382674159,1756705847004,-186.530103,0.00014298,2]
[382674161,1756705847014,-152.601651,0.00014298,2]
[382674163,1756705847024,-203.211685,0.00014298,2]
[382674165,1756705847033,-203.211685,0.00014298,2]
[382674168,1756705847043,-203.211685,0.00014298,2]
[382674170,1756705847053,-203.211684,0.00014298,2]
[382674172,1756705847063,-38669.47798072,0.00014298,2]
[382674174,1756705847074,-151.0,0.000143,2]
[382674175,1756705847084,-151.0,0.000143,2]
[382674178,1756705847094,-151.0,0.000143,2]
[382674180,1756705847104,-480.0,0.00014304,2]
[382674182,1756705847114,-480.0,0.00014304,2]
[382674183,1756705847125,-484.14517083,0.00014304,2]
[382674186,1756705847140,-959.02,0.00014304,2]
[382674188,1756705847150,-480.0,0.00014304,2]
[382674190,1756705847160,-480.0,0.00014304,2]
[382674192,1756705847171,-480.0,0.00014304,2]
[382674194,1756705847181,-1007.69,0.00014304,2]
[382674196,1756705847191,-480.0,0.00014304,2]
[382674197,1756705847200,-480.0,0.00014304,2]
[382674199,1756705847210,-480.0,0.00014304,2]
[382674201,1756705847220,-480.0,0.00014304,2]
[382674202,1756705847229,-480.0,0.00014304,2]
[382674203,1756705847239,-480.0,0.00014304,2]
[382674204,1756705847248,-480.0,0.00014304,2]
[382674205,1756705847257,-724.16,0.00014304,2]
[382674206,1756705847266,-588.81,0.00014304,2]
[382674207,1756705847276,-480.0,0.00014304,2]
[382674208,1756705847285,-480.0,0.00014304,2]
[382674209,1756705847294,-480.0,0.00014304,2]
[382674210,1756705847303,-480.0,0.00014304,2]
[382674211,1756705847312,-1201.71,0.00014304,2]
[382674212,1756705847321,-511.63,0.00014304,2]
[382674213,1756705847330,-494.09355426,0.00014304,2]
[382674214,1756705847340,-480.0,0.00014304,2]
[382674215,1756705847350,-480.0,0.00014304,2]
[382674217,1756705847359,-2316.86,0.00014304,2]
[382674219,1756705847369,-480.0,0.00014304,2]
[382674221,1756705847379,-480.0,0.00014304,2]
[382674223,1756705847390,-480.0,0.00014304,2]
[382674225,1756705847400,-536.9,0.00014304,2]
[382674227,1756705847410,-480.0,0.00014304,2]
[382674229,1756705847420,-500.12,0.00014304,2]
[382674231,1756705847430,-480.0,0.00014304,2]
[382674233,1756705847440,-550.96,0.00014304,2]
[382674235,1756705847449,-1209.8,0.00014304,2]
[382674237,1756705847459,-480.0,0.00014304,2]
[382674239,1756705847469,-480.0,0.00014304,2]
[382674241,1756705847479,-601.47,0.00014304,2]
[382674243,1756705847488,-480.0,0.00014304,2]
[382674245,1756705847498,-480.0,0.00014304,2]
[382674247,1756705847507,-480.0,0.00014304,2]
[382674249,1756705847517,-2093.79,0.00014304,2]
[382674251,1756705847526,-591.69,0.00014304,2]
[382674253,1756705847536,-480.0,0.00014304,2]
[382674255,1756705847545,-688.09,0.00014304,2]
[382674257,1756705847554,-893.1,0.00014304,2]
[382674259,1756705847563,-480.0,0.00014304,2]
[382674261,1756705847572,-1222.02,0.00014304,2]
[382674263,1756705847582,-1814.94,0.00014304,2]
[382674265,1756705847592,-594.12,0.00014304,2]
[382674267,1756705847601,-480.0,0.00014304,2]
[382674269,1756705847611,-480.0,0.00014304,2]
[382674271,1756705847620,-480.0,0.00014304,2]
[382674273,1756705847630,-480.0,0.00014304,2]
[382674275,1756705847640,-480.0,0.00014304,2]
[382674277,1756705847649,-480.0,0.00014304,2]
[382674279,1756705847658,-480.0,0.00014304,2]
[382674281,1756705847668,-500.0,0.00014304,2]
[382674284,1756705847678,-500.0,0.00014381,2]
[382674286,1756705847687,-151.0,0.00014381,2]
[382674288,1756705847696,-500.0,0.00014381,2]
[382674290,1756705847706,-151.0,0.00014381,2]
[382674292,1756705847715,-151.0,0.00014381,2]
[382674294,1756705847725,-151.0,0.00014381,2]
[382674295,1756705847734,-151.0,0.00014381,2]
[382674298,1756705847744,-151.0,0.00014381,2]
[382674300,1756705847753,-500.0,0.00014381,2]
[382674301,1756705847764,-242.3268336,0.00014381,2]
[382674303,1756705847774,-1494.0,0.00014381,2]
[382674306,1756705847784,-168.636159,0.00014381,2]
[382674308,1756705847793,-151.0,0.00014381,2]
[382674310,1756705847802,-151.0,0.00014381,2]
[382674311,1756705847812,-151.0,0.00014381,2]
[382674314,1756705847822,-160.604832,0.00014381,2]
[382674316,1756705847831,-160.604832,0.00014381,2]
[382674318,1756705847841,-160.604832,0.00014381,2]
[382674320,1756705847850,-160.604839,0.00014381,2]
[382674322,1756705847860,-151.0,0.000144,2]
[382674324,1756705847869,-151.0,0.000144,2]
[382674326,1756705847879,-151.0,0.000144,2]
[382674328,1756705847888,-151.0,0.000144,2]
[382674330,1756705847898,-1087.63,0.00014402,2]
[382674332,1756705847908,-441.88219619,0.00014403,2]
[382674333,1756705847917,-151.0,0.00014403,2]
[382674335,1756705847927,-151.0,0.00014403,2]
[382674337,1756705847936,-151.0,0.00014403,2]
[382674340,1756705847948,-195.389863,0.00014403,2]
[382674341,1756705847958,-151.0,0.00014403,2]
[382674343,1756705847968,-151.0,0.00014403,2]
[382674346,1756705847980,-151.0,0.00014403,2]
[382674348,1756705847990,-151.0,0.00014403,2]
[382674350,1756705847999,-151.0,0.00014403,2]
[382674352,1756705848009,-775.72,0.00014403,2]
[382674354,1756705848019,-151.0,0.00014403,2]
[382674356,1756705848028,-296.855791,0.00014403,2]
[382674358,1756705848038,-480.0,0.00014403,2]
[382674360,1756705848047,-278.677164,0.00014403,2]
[382674362,1756705848057,-278.677164,0.00014403,2]
[382674364,1756705848066,-278.677164,0.00014403,2]
[382674366,1756705848076,-278.677161,0.00014403,2]
[382674368,1756705848086,-661.01,0.00014403,2]
[382674370,1756705848095,-1408.26,0.00014403,2]
[382674372,1756705848104,-5249.77,0.00014403,2]
[382674374,1756705848114,-480.0,0.00014403,2]
[382674376,1756705848124,-830.29,0.00014403,2]
[382674378,1756705848137,-1204.97,0.00014403,2]
[382674380,1756705848147,-3257.21,0.00014403,2]
[382674382,1756705848156,-4980.36,0.00014403,2]
[382674384,1756705848167,-1963.55,0.00014403,2]
[382674386,1756705848176,-622.47,0.00014403,2]
[382674388,1756705848186,-1425.86,0.00014403,2]
[382674390,1756705848195,-480.0,0.00014403,2]
[382674392,1756705848206,-480.0,0.00014404,2]
[382674394,1756705848216,-480.0,0.00014404,2]
[382674396,1756705848226,-480.0,0.00014404,2]
[382674398,1756705848235,-480.0,0.00014404,2]
[382674400,1756705848244,-480.0,0.00014404,2]
[382674402,1756705848254,-405.33266599,0.00014404,2]
[382674404,1756705848264,-480.0,0.00014404,2]
[382674406,1756705848273,-720.62,0.00014404,2]
[382674408,1756705848284,-480.0,0.00014404,2]
[382674410,1756705848294,-1045.3,0.00014404,2]
[382674412,1756705848304,-700.16,0.00014404,2]
[382674414,1756705848314,-480.0,0.00014404,2]
[382674416,1756705848325,-480.0,0.00014404,2]
[382674418,1756705848335,-480.0,0.00014404,2]
[382674420,1756705848345,-480.0,0.00014404,2]
[382674422,1756705848354,-154.442497,0.00014404,2]
[382674424,1756705848364,-544.45,0.00014404,2]
[382674426,1756705848374,-724.58,0.00014404,2]
[382674428,1756705848384,-480.0,0.00014404,2]
[382674430,1756705848393,-480.0,0.00014404,2]
[382674432,1756705848404,-892.82,0.00014404,2]
[382674434,1756705848413,-480.0,0.00014404,2]
[382674436,1756705848422,-821.3,0.00014404,2]
[382674438,1756705848432,-809.36,0.00014404,2]
[382674440,1756705848442,-1025.49,0.00014404,2]
[382674442,1756705848451,-568.86,0.00014404,2]
[382674444,1756705848461,-480.0,0.00014404,2]
[382674446,1756705848471,-480.0,0.00014404,2]
[382674448,1756705848481,-604.84,0.00014404,2]
[382674450,1756705848490,-820.88,0.00014404,2]
[382674452,1756705848500,-480.0,0.00014404,2]
[382674454,1756705848509,-480.0,0.00014404,2]
[382674456,1756705848519,-668.21,0.00014404,2]
[382674458,1756705848529,-480.0,0.00014404,2]
[382674460,1756705848538,-480.0,0.00014404,2]
[382674462,1756705848547,-480.0,0.00014404,2]
[382674464,1756705848557,-678.37,0.00014404,2]
[382674471,1756705848609,-705.04,0.00014404,2]
[382674473,1756705848619,-480.0,0.00014404,2]
[382674475,1756705848628,-780.52,0.00014404,2]
[382674477,1756705848637,-480.0,0.00014404,2]
[382674478,1756705848646,-480.0,0.00014404,2]
[382674480,1756705848655,-480.0,0.00014404,2]
[382674482,1756705848665,-480.0,0.00014404,2]
[382674484,1756705848674,-480.0,0.00014404,2]
[382674486,1756705848685,-827.91,0.00014404,2]
[382674487,1756705848695,-480.0,0.00014404,2]
[382674488,1756705848705,-480.0,0.00014404,2]
[382674489,1756705848715,-484.48363425,0.00014404,2]
[382674490,1756705848724,-480.0,0.00014404,2]
[382674491,1756705848734,-918.17,0.00014404,2]
[382674492,1756705848745,-1131.63,0.00014404,2]
[382674493,1756705848755,-480.0,0.00014404,2]
[382674494,1756705848765,-488.26,0.00014404,2]
[382674495,1756705848775,-480.0,0.00014404,2]
[382674496,1756705848784,-480.0,0.00014404,2]
[382674497,1756705848794,-480.0,0.00014404,2]
[382674498,1756705848803,-850.44,0.00014404,2]
[382674499,1756705848813,-3629.01,0.00014404,2]
[382674500,1756705848823,-6074.19857096,0.00014417,2]
[382674501,1756705848832,-151.0,0.000145,2]
[382674502,1756705848842,-151.0,0.000145,2]
[382674503,1756705848852,-151.0,0.000145,2]
[382674504,1756705848861,-480.0,0.00014502,2]
[382674505,1756705848870,-480.0,0.00014502,2]
[382674506,1756705848880,-528.2,0.00014502,2]
[382674507,1756705848889,-3028.984135,0.00014502,2]
[382674509,1756705848899,-480.0,0.00014502,2]
[382674511,1756705848909,-480.0,0.00014502,2]
[382674513,1756705848918,-480.0,0.00014502,2]
[382674515,1756705848927,-480.0,0.00014502,2]
[382674517,1756705848937,-480.0,0.00014502,2]
[382674519,1756705848947,-480.0,0.00014502,2]
[382674521,1756705848956,-976.53,0.00014502,2]
[382674523,1756705848965,-480.0,0.00014502,2]
[382674525,1756705848975,-1015.92,0.00014502,2]
[382674527,1756705848984,-480.0,0.00014502,2]
[382674529,1756705848993,-480.0,0.00014502,2]
[382674531,1756705849002,-480.0,0.00014502,2]
[382674533,1756705849012,-888.21,0.00014502,2]
[382674535,1756705849023,-480.0,0.00014502,2]
[382674537,1756705849032,-2136.21,0.00014502,2]
[382674539,1756705849041,-480.0,0.00014502,2]
[382674541,1756705849050,-1101.63,0.00014502,2]
[382674543,1756705849059,-710.3,0.00014502,2]
[382674545,1756705849071,-480.0,0.00014502,2]
[382674547,1756705849080,-506.26754925,0.00014502,2]
[382674549,1756705849090,-516.35,0.00014502,2]
[382674551,1756705849099,-1380.56,0.00014502,2]
[382674553,1756705849108,-619.66,0.00014502,2]
[382674555,1756705849118,-480.0,0.00014502,2]
[382674557,1756705849130,-621.5,0.00014502,2]
[382674559,1756705849140,-550.2,0.00014502,2]
[382674561,1756705849149,-480.0,0.00014503,2]
[382674563,1756705849159,-480.0,0.00014503,2]
[382674565,1756705849170,-480.0,0.00014503,2]
[382674567,1756705849179,-480.0,0.00014503,2]
[382674569,1756705849188,-480.0,0.00014503,2]
[382674571,1756705849197,-480.0,0.00014503,2]
[382674573,1756705849209,-480.0,0.00014503,2]
[382674575,1756705849218,-691.89,0.00014503,2]
[382674577,1756705849228,-480.0,0.00014503,2]
[382674579,1756705849238,-480.0,0.00014503,2]
[382674581,1756705849247,-484.04014659,0.00014503,2]
[382674583,1756705849256,-392.20297653,0.00014503,2]
[382674585,1756705849266,-480.0,0.00014503,2]
[382674587,1756705849275,-480.0,0.00014503,2]
[382674589,1756705849284,-480.0,0.00014503,2]
[382674591,1756705849294,-480.0,0.00014503,2]
[382674593,1756705849303,-480.0,0.00014503,2]
[382674595,1756705849313,-480.0,0.00014503,2]
[382674597,1756705849323,-480.0,0.00014503,2]
[382674599,1756705849332,-362.87778078,0.00014503,2]
[382674601,1756705849341,-480.0,0.00014503,2]
[382674603,1756705849350,-480.0,0.00014503,2]
[382674605,1756705849359,-480.0,0.00014503,2]
[382674607,1756705849368,-480.0,0.00014503,2]
[382674609,1756705849377,-480.0,0.00014503,2]
[382674611,1756705849387,-480.0,0.00014503,2]
[382674613,1756705849396,-480.0,0.00014503,2]
[382674615,1756705849405,-856.14,0.00014503,2]
[382674617,1756705849414,-480.0,0.00014503,2]
[382674619,1756705849424,-814.59,0.00014503,2]
[382674621,1756705849433,-151.0,0.00014503,2]
[382674623,1756705849442,-480.0,0.00014503,2]
[382674625,1756705849451,-480.0,0.00014503,2]
[382674627,1756705849460,-480.0,0.00014503,2]
[382674629,1756705849469,-481.63209188,0.00014503,2]
[382674631,1756705849479,-688.69,0.00014503,2]
[382674633,1756705849488,-480.0,0.00014503,2]
[382674635,1756705849499,-480.0,0.00014503,2]
[382674637,1756705849510,-237.591761,0.00014503,2]
[382674639,1756705849519,-480.0,0.00014503,2]
[382674641,1756705849528,-480.0,0.00014503,2]
[382674643,1756705849537,-480.0,0.00014503,2]
[382674645,1756705849547,-480.0,0.00014503,2]
[382674647,1756705849556,-151.0,0.00014503,2]
[382674649,1756705849565,-480.0,0.00014503,2]
[382674651,1756705849575,-480.0,0.00014503,2]
[382674653,1756705849584,-553.06440306,0.00014503,2]
[382674655,1756705849594,-480.0,0.00014503,2]
[382674657,1756705849603,-1109.05,0.00014503,2]
[382674659,1756705849612,-808.33,0.00014503,2]
[382674661,1756705849621,-151.0,0.00014503,2]
[382674663,1756705849631,-480.0,0.00014503,2]
[382674665,1756705849640,-480.0,0.00014503,2]
[382674667,1756705849650,-480.0,0.00014503,2]
[382674669,1756705849660,-151.0,0.00014503,2]
[382674671,1756705849669,-151.0,0.00014503,2]
[382674673,1756705849679,-480.0,0.00014503,2]
[382674675,1756705849688,-480.0,0.00014503,2]
[382674677,1756705849697,-743.86,0.00014503,2]
[382674679,1756705849707,-3283.55,0.00014503,2]
[382674680,1756705849716,-151.0,0.00014503,2]
[382674682,1756705849725,-151.0,0.00014503,2]
[382674683,1756705849733,-151.0,0.00014503,2]
[382674684,1756705849743,-480.0,0.00014503,2]
[382674685,1756705849752,-439.02496402,0.00014503,2]
[382674686,1756705849761,-480.0,0.00014503,2]
[382674687,1756705849770,-480.0,0.00014503,2]
[382674688,1756705849780,-480.0,0.00014503,2]
[382674689,1756705849789,-480.0,0.00014503,2]
[382674690,1756705849798,-480.0,0.00014503,2]
[382674691,1756705849807,-481.10223775,0.00014503,2]
[382674692,1756705849816,-499.7,0.00014503,2]
[382674693,1756705849826,-412.24149427,0.00014503,2]
[382674694,1756705849836,-480.0,0.00014503,2]
[382674695,1756705849844,-480.0,0.00014503,2]
[382674696,1756705849853,-480.0,0.00014503,2]
[382674697,1756705849862,-480.0,0.00014503,2]
[382674698,1756705849871,-486.78285137,0.00014503,2]
[382674699,1756705849880,-480.0,0.00014503,2]
[382674700,1756705849889,-154.304176,0.00014503,2]
[382674701,1756705849898,-480.0,0.00014503,2]
[382674702,1756705849907,-151.0,0.00014503,2]
[382674703,1756705849916,-480.0,0.00014503,2]
[382674704,1756705849925,-480.0,0.00014503,2]
[382674705,1756705849934,-151.0,0.00014503,2]
[382674706,1756705849942,-872.89,0.00014503,2]
[382674707,1756705849951,-609.10892235,0.00014503,2]
[382674708,1756705849960,-522.84,0.00014503,2]
[382674709,1756705849969,-1227.61,0.00014503,2]
[382674710,1756705849978,-480.0,0.00014503,2]
[382674711,1756705849988,-484.21049196,0.00014503,2]
[382674712,1756705849996,-463.39145523,0.00014503,2]
[382674713,1756705850005,-484.68311449,0.00014503,2]
[382674714,1756705850015,-629.74,0.00014503,2]
[382674715,1756705850024,-480.0,0.00014503,2]
[382674716,1756705850033,-1198.1,0.00014503,2]
[382674717,1756705850043,-1139.62,0.00014503,2]
[382674718,1756705850052,-483.25609583,0.00014503,2]
[382674719,1756705850061,-480.0,0.00014503,2]
[382674720,1756705850070,-482.14397125,0.00014503,2]
[382674721,1756705850079,-483.4,0.00014503,2]
[382674722,1756705850087,-1072.0,0.00014503,2]
[382674723,1756705850096,-1101.02,0.00014503,2]
[382674724,1756705850105,-480.0,0.00014503,2]
[382674725,1756705850114,-480.0,0.00014503,2]
[382674726,1756705850124,-480.0,0.00014503,2]
[382674727,1756705850136,-480.0,0.00014503,2]
[382674728,1756705850146,-480.0,0.00014503,2]
[382674729,1756705850155,-1135.83,0.00014503,2]
[382674730,1756705850163,-448.19095112,0.00014503,2]
[382674731,1756705850173,-480.0,0.00014503,2]
[382674732,1756705850183,-480.0,0.00014503,2]
[382674733,1756705850192,-480.0,0.00014503,2]
[382674734,1756705850203,-480.0,0.00014503,2]
[382674735,1756705850213,-480.0,0.00014503,2]
[382674736,1756705850223,-480.0,0.00014503,2]
[382674737,1756705850232,-1286.2,0.00014503,2]
[382674738,1756705850242,-295.55875626,0.00014503,2]
[382674739,1756705850251,-480.0,0.00014503,2]
[382674740,1756705850261,-1055.18,0.00014503,2]
[382674741,1756705850271,-480.0,0.00014503,2]
[382674742,1756705850280,-457.16364871,0.00014503,2]
[382674743,1756705850289,-1365.17,0.00014503,2]
[382674744,1756705850299,-480.0,0.00014503,2]
[382674745,1756705850307,-480.0,0.00014503,2]
[382674746,1756705850316,-480.0,0.00014503,2]